Cogmind - Beta 13 @@@ ROGUE MODE // 2024.06.30 @ 16:07:44 Player: keygenpie Result: Destroyed by H-55 Commando with Gauss Rifle Performance ------------- Evolutions (2) 1000 Regions Visited (5) 1000 Robots Destroyed (43) 215 Value Destroyed (959) 959 Prototype IDs (6) 120 Alien Tech Used (0) 0 Bonus (0) 0 TOTAL SCORE: 3294 Bonus ------- None Cogmind --------- Core Integrity 0/550 Matter 295/300 Energy 35/100 System Corruption 0% Temperature Cool (1) Movement Hovering (50) Location -8/Materials Parts ------- > --- POWER (1) -------- (None) > --- PROPULSION (4) --- Aerolev Unit > --- UTILITY (3) ------ Structural Scanner > --- WEAPON (3) ------- (None) > --- INVENTORY (5) ---- Melee Analysis Suite Energy Filter Improved Trap Extractor (0/6) Peak State ------------ > --- POWER ------------ (None) > --- PROPULSION ------- Armored Huge Wheel Armored Huge Wheel > --- UTILITY ---------- Structural Scanner Seismic Detector > --- WEAPON ----------- Beam Rifle > --- INVENTORY -------- Aerolev Unit Melee Analysis Suite Energy Filter Improved Trap Extractor [Rating: 21] Favorites ----------- Power Light Ion Engine Engine Light Ion Engine Propulsion Aluminum Leg Treads Light Treads Leg Aluminum Leg Wheel Wheel Hover Unit Aerolev Unit Utility Seismic Detector Device Seismic Detector Storage Small Storage Unit Processor Terrain Scan Processor Protection Utility Shielding Weapon Small Laser Energy Gun Small Laser Ballistic Gun Light Assault Rifle Special Melee Weapon Datajack Build | -11 -10 -10 -9 -9 -8 ------- Run | Yrd Mat Min Mat Min Mat Slots Evolved 4 | . . . 2 . 2 Power . | . . . . . . Propulsion 2 | . . . 2 . . Utility 1 | . . . . . 1 Weapon 1 | . . . . . 1 Parts Attached 59 | 8 1 12 16 14 8 Power 7 | 3 . 2 . 1 1 Engine 7 | 3 . 2 . 1 1 Core . | . . . . . . Reactor . | . . . . . . Propulsion 23 | 2 . 2 6 9 4 Treads 2 | . . 2 . . . Leg 12 | 2 . . 6 4 . Wheel 7 | . . . . 5 2 Hover 2 | . . . . . 2 Flight . | . . . . . . Utility 13 | 1 1 4 3 2 2 Device 8 | . . 3 1 2 2 Storage 3 | 1 . 1 1 . . Processor 1 | . . . 1 . . Hackware . | . . . . . . Protection 1 | . 1 . . . . Artifact . | . . . . . . Weapon 16 | 2 . 4 7 2 1 Energy Gun 9 | . . 4 3 1 1 Energy Cannon . | . . . . . . Ballistic Gun 6 | 2 . . 4 . . Ballistic Cannon . | . . . . . . Launcher . | . . . . . . Special Weapon . | . . . . . . Impact Weapon . | . . . . . . Slashing Weapon . | . . . . . . Piercing Weapon . | . . . . . . Special Melee Weapon 1 | . . . . 1 . Unidentified Prototypes 2 | . . . 1 . 1 Parts Lost 20 | . . . 6 1 13 Power 3 | . . . 1 . 2 Propulsion 11 | . . . 4 1 6 Utility 3 | . . . 1 . 2 Weapon 3 | . . . . . 3 Highest Loss Streak 8 | . . . 5 1 8 To Critical Strikes 1 | . . . 1 . . Average Slot Usage (%) 88 | . 98 100 88 86 59 Engine 11 | . 14 14 10 9 5 Treads 9 | . . 21 11 . . Leg 15 | . 28 6 22 7 15 Wheel 4 | . . . . 24 7 Device 15 | . . 18 14 22 20 Storage 5 | . 14 6 4 . . Protection 2 | . 12 3 . . . Energy Gun 9 | . . 21 7 . 6 Ballistic Gun 12 | . 28 6 14 22 . Naked Turns . | . . . . . . Heaviest Build 14 | 10 11 14 12 11 9 Greatest Support 56 | 20 20 40 40 40 56 Greatest Overweight (x) 1 | 1 . . . 1 1 Average Overweight (x) . | . . . . . . Largest Inventory Capacity 8 | 8 8 8 5 5 5 Average Capacity 5 | 6 8 6 5 5 5 Most Carried 7 | 4 7 7 5 5 5 Average Carried 4 | 2 5 4 3 4 3 Final Capacity 8 | 8 8 5 5 5 5 Final Carried 7 | 4 7 4 3 4 3 Class Distribution -------------------- 50% | Mutant 48% | Scavenger-Mutant Dominant Class ---------------- Mutant | -10/Materials Scavenger-Mutant | -10/Mines Scavenger-Mutant | -9/Materials Scavenger-Mutant | -9/Mines Mutant | -8/Materials Resources | -11 -10 -10 -9 -9 -8 ----------- Run | Yrd Mat Min Mat Min Mat Matter Collected 1322 | 238 224 117 301 386 56 Remotely . | . . . . . . Salvage Created 1477 | . 292 164 613 351 57 Parts 94 | . 14 13 34 33 . Haulers Intercepted 1 | . . . 1 . . Recyclers Shooed 4 | . . . 4 . . Parts Field Recycled . | . . . . . . Retrieved Matter . | . . . . . . Parts Self-Destructed . | . . . . . . Prevented . | . . . . . . Kills | -11 -10 -10 -9 -9 -8 ------- Run | Yrd Mat Min Mat Min Mat Combat Hostiles Destroyed 24 | . 5 4 11 3 1 Guns 24 | . 5 4 11 3 1 Classes Destroyed 10 | . 2 2 5 1 . Worker 7 | . . . 1 6 . Builder 4 | . . . . 4 . Tunneler 4 | . . 3 . 1 . Hauler 1 | . . . 1 . . Recycler 1 | . 1 . . . . Watcher 2 | . . . 2 . . Swarmer 3 | . . 3 . . . Grunt 17 | . 5 1 7 3 1 Brawler 1 | . . . 1 . . Sentry 3 | . . . 3 . . Best Kill Streak 12 | . 2 3 3 12 1 Combat Bots Only 3 | . 2 3 3 3 1 Max Kills in Single Turn 2 | . 1 1 1 2 1 Gunslinging . | . . . . . . Exploded . | . . . . . . Melee . | . . . . . . Uniques/NPCs Destroyed . | . . . . . . Combat | -11 -10 -10 -9 -9 -8 -------- Run | Yrd Mat Min Mat Min Mat Hostile Shots Fired 317 | . 53 29 83 11 141 Missed 81 | . 20 5 20 2 34 Damage Taken 3537 | . 405 252 1052 122 1706 Core 888 | . 127 52 128 26 555 Absorbed by Shields . | . . . . . . Redirected to Shielding 6 | . 6 . . . . Core Remaining (%) 63 | 100 . 28 . 61 . Volleys Fired 169 | . 36 18 53 24 38 Largest 2 | . 2 2 2 2 1 Hottest 90 | . 40 80 90 46 56 Shots Fired 300 | . 72 36 105 49 38 Gun 300 | . 72 36 105 49 38 Cannon . | . . . . . . Launcher . | . . . . . . Special . | . . . . . . Kinetic 198 | . 72 . 77 49 . Thermal 94 | . . 36 20 . 38 Explosive . | . . . . . . Electromagnetic 8 | . . . 8 . . Robot Hit Streak 12 | . 12 5 11 5 11 Robot Miss Streak 6 | . 6 3 4 2 2 Penetration Max . | . . . . . . Secondary Targets 8 | . 2 . 5 1 . Max Gunslinging Chain 1 | . 1 . 1 1 . Shots Hit Robots 194 | . 45 17 78 28 26 Core Hits 81 | . 20 9 27 17 8 Critical Kills 1 | . . . . 1 . Critical Parts Destroyed . | . . . . . . Critical Strikes 4 | . . . . 1 3 Burn 3 | . . . . . 3 Destroy 1 | . . . . 1 . Melee Attacks . | . . . . . . Impact . | . . . . . . Slashing . | . . . . . . Piercing . | . . . . . . Sneak Attacks . | . . . . . . Combat Hostiles . | . . . . . . Follow-up Attacks . | . . . . . . Damage Inflicted 2612 | . 394 186 1200 501 331 Guns 2601 | . 394 184 1198 494 331 Cannons . | . . . . . . Explosions . | . . . . . . Melee . | . . . . . . Ramming 11 | . . 2 2 7 . Kinetic 1684 | . 394 . 796 494 . Thermal 744 | . . 184 229 . 331 Explosive . | . . . . . . Electromagnetic 173 | . . . 173 . . Impact . | . . . . . . Slashing . | . . . . . . Piercing . | . . . . . . Highest Corruption 9 | . . . 9 9 . Average Corruption 7 | . . . 4 9 . Corruption Purged . | . . . . . . Corruption Blocked . | . . . . . . Effects 12 | . . . 5 7 . Message Errors 2 | . . . 2 . . Matter Fused 5 | . . . 1 4 . Heat Flow Errors 3 | . . . 1 2 . Misfires 1 | . . . . 1 . Weapon Failures 1 | . . . 1 . . Overload Shots . | . . . . . . Overflow Damage . | . . . . . . Projectiles . | . . . . . . Explosions . | . . . . . . Melee . | . . . . . . Knockbacks . | . . . . . . Impact . | . . . . . . Kinetic . | . . . . . . Secondary . | . . . . . . Self-Inflicted Damage 35 | . . . 32 3 . Shots 1 | . . . 1 . . Rammed 2 | . . 1 . 1 . Targets Rammed 3 | . . 1 1 1 . Kicked 1 | . . . 1 . . Crushed . | . . . . . . Highest Temperature 359 | . 31 90 359 119 60 Average Temperature 71 | . 13 32 131 66 23 Received Heat Transfer 1686 | . 234 111 342 72 927 Siege Activations . | . . . . . . Robots Corrupted . | . . . . . . Combat Hostiles . | . . . . . . Parts Fried . | . . . . . . Impact Corruptions . | . . . . . . Robots Melted . | . . . . . . Combat Hostiles . | . . . . . . Parts Melted . | . . . . . . Heat Transferred 2034 | . . 425 592 . 1017 Parts Sabotaged . | . . . . . . Parts Stolen . | . . . . . . Parts Stripped . | . . . . . . Power Chain Reactions 1 | . . . 1 . . Alert | -11 -10 -10 -9 -9 -8 ------- Run | Yrd Mat Min Mat Min Mat Peak Influence 287 | . 144 170 287 184 92 Initial 71 | . . 55 1 54 71 Average 75 | . 65 71 102 95 52 Maximum Alert Level 1 | . . . 1 . . Low Security (%) 95 | 100 100 100 81 100 100 Level 1 4 | . . . 18 . . Level 2 . | . . . . . . Level 3 . | . . . . . . Level 4 . | . . . . . . Level 5 . | . . . . . . High Security . | . . . . . . Max Security . | . . . . . . Squads Dispatched 4 | . 1 . 3 . . Investigation 3 | . 1 . 2 . . Extermination . | . . . . . . Reinforcement 1 | . . . 1 . . Assault . | . . . . . . Garrison . | . . . . . . Intercept . | . . . . . . Searches Triggered . | . . . . . . Construction Impeded . | . . . . . . Haulers Reinforced . | . . . . . . Active Scanning Responses . | . . . . . . Cargo Convoy Interrupts . | . . . . . . Stealth | -11 -10 -10 -9 -9 -8 --------- Run | Yrd Mat Min Mat Min Mat Distress Signals 4 | . . . 3 . 1 Communications Jammed . | . . . . . . Distress Signals . | . . . . . . Times Spotted 39 | . 9 5 15 3 7 Peak Tracking Total 5 | . 4 3 5 3 5 Tactical Retreats 1 | . . 1 . . . Traps | -11 -10 -10 -9 -9 -8 ------- Run | Yrd Mat Min Mat Min Mat Traps Triggered 2 | . . . 2 . . Indirectly . | . . . . . . Trap Hack Attempts . | . . . . . . Triggered . | . . . . . . Disarmed . | . . . . . . Reprogrammed . | . . . . . . Reused . | . . . . . . Traps Extracted . | . . . . . . Installed . | . . . . . . Triggered . | . . . . . . Machines | -11 -10 -10 -9 -9 -8 ---------- Run | Yrd Mat Min Mat Min Mat Machines Disabled 2 | . . . 2 . . Max in Single Turn 1 | . . . 1 . . Machines Repaired . | . . . . . . Machines Dismantled . | . . . . . . Machines Sabotaged . | . . . . . . Overloaded Fab Kills . | . . . . . . Hacking | -11 -10 -10 -9 -9 -8 --------- Run | Yrd Mat Min Mat Min Mat Machines Accessed 8 | . 3 . 2 . 3 Terminals 8 | . 3 . 2 . 3 Fabricators . | . . . . . . Repair Stations . | . . . . . . Recycling Units . | . . . . . . Scanalyzers . | . . . . . . Garrison Access . | . . . . . . Total Hacks 19 | . 7 . 5 . 7 Successful 10 | . 4 . 1 . 5 Failed 9 | . 3 . 4 . 2 Catastrophic . | . . . . . . Database Lockouts . | . . . . . . Manual . | . . . . . . Terminals 19 | . 7 . 5 . 7 Fabricators . | . . . . . . Repair Stations . | . . . . . . Recycling Units . | . . . . . . Scanalyzers . | . . . . . . Garrison Access . | . . . . . . Terminal Hacks 10 | . 4 . 1 . 5 Record 1 | . . . . . 1 Prototype ID Bank 2 | . 1 . . . 1 Branch Access Points 1 | . . . . . 1 Emergency Access Points 1 | . 1 . . . . Alert Level 1 | . 1 . . . . Hauler Manifests 2 | . . . 1 . 1 Zone Layout 2 | . 1 . . . 1 Fabricator Hacks . | . . . . . . Repair Station Hacks . | . . . . . . Recycling Unit Hacks . | . . . . . . Scanalyzer . | . . . . . . Garrison Access Hacks . | . . . . . . Unauthorized Hacks . | . . . . . . Terminals . | . . . . . . Fabricators . | . . . . . . Repair Stations . | . . . . . . Recycling Units . | . . . . . . Scanalyzers . | . . . . . . Garrison Access . | . . . . . . Data Cores Recovered . | . . . . . . Used . | . . . . . . Hacking Detections 7 | . 2 . 2 . 3 Full Trace Events 3 | . 1 . 1 . 1 Feedback Events . | . . . . . . Feedback Blocked . | . . . . . . Robot Schematics Acquired . | . . . . . . Robots Built . | . . . . . . Authchips . | . . . . . . Time . | . . . . . . Total Robot Build Rating . | . . . . . . Part Schematics Acquired . | . . . . . . Parts Built . | . . . . . . Authchips . | . . . . . . Time . | . . . . . . Total Part Build Rating . | . . . . . . Parts Repaired . | . . . . . . Time . | . . . . . . Parts Recycled . | . . . . . . Recycled Matter . | . . . . . . Retrieved Matter . | . . . . . . Retrieved Components . | . . . . . . Parts Scanalyzed . | . . . . . . Part Schematics Acquired . | . . . . . . Parts Damaged . | . . . . . . Bothacking | -11 -10 -10 -9 -9 -8 ------------ Run | Yrd Mat Min Mat Min Mat Used RIF Installer . | . . . . . . Robots Hacked . | . . . . . . Non-combat . | . . . . . . Combat . | . . . . . . Robot Hacks Applied . | . . . . . . Relay Couplers Released . | . . . . . . Fabnet Peak Effective % . | . . . . . . Robots Rewired . | . . . . . . Allies Hacked . | . . . . . . Hacks Repelled . | . . . . . . Allies | -11 -10 -10 -9 -9 -8 -------- Run | Yrd Mat Min Mat Min Mat Total Allies . | . . . . . . Largest Group . | . . . . . . Highest-Rated Group . | . . . . . . Highest-Rated Ally . | . . . . . . Total Orders . | . . . . . . Ally Attacks . | . . . . . . Total Damage . | . . . . . . Kills . | . . . . . . Allies Corrupted . | . . . . . . Allies Melted . | . . . . . . Intel | -11 -10 -10 -9 -9 -8 ------- Run | Yrd Mat Min Mat Min Mat Robot Analysis Total . | . . . . . . Derelict Logs Recovered 3 | . . 2 . 1 . Drone Launches . | . . . . . . Drone Recoveries . | . . . . . . Exploration | -11 -10 -10 -9 -9 -8 ------------- Run | Yrd Mat Min Mat Min Mat Turns Passed 1917 | 81 274 581 471 230 280 Spaces Moved 1078 | 61 147 340 200 150 180 Core 25 | 18 . . . . 7 Treads 330 | . . 229 101 . . Legs 491 | 43 147 111 99 25 66 Wheels 210 | . . . . 125 85 Hover 22 | . . . . . 22 Flight . | . . . . . . Fastest Speed 50 | 50 120 120 120 80 50 Average Speed 124 | 102 120 146 140 91 101 Slowest Speed 190 | 120 120 160 160 190 120 Overloaded Moves . | . . . . . . Propulsion Burnouts . | . . . . . . Robots Hopped . | . . . . . . Cave-ins Triggered 1 | . . . 1 . . Exploration Rate (%) 21 | 5 23 49 14 24 13 Regions Visited 5 Branch Regions 2 Pre-discovered Areas 1 | . . 1 . . . Known Exits Taken . | . . . . . . Unknown Exits Taken 5 | 1 1 1 1 1 . Scrap Searched 2 | . . 1 . 1 . Spaces Dug . | . . . . . . Terrain Destroyed 6 | . . . 6 . . Melee . | . . . . . . Projectile . | . . . . . . AOE 6 | . . . 6 . . Terrain Rammed . | . . . . . . Walls Destroyed . | . . . . . . Machines Disabled . | . . . . . . Actions | -11 -10 -10 -9 -9 -8 --------- Run | Yrd Mat Min Mat Min Mat Total 1396 | 78 187 383 302 205 241 Wait 7 | . . . 2 . 5 Move 1073 | 60 146 339 199 149 180 Hop . | . . . . . . Pick Up 50 | 10 4 5 16 8 7 Fast Attach 8 | . . . . 8 . Attach 25 | 6 1 . 6 4 8 Detach 2 | . . . 1 . 1 Swap 26 | 2 . 12 10 2 . Drop 33 | . . 8 14 9 2 Fire 169 | . 36 18 53 24 38 Melee . | . . . . . . Ram 1 | . . . . 1 . Kick 1 | . . . 1 . . Crush 1 | . . 1 . . . Escape Stasis . | . . . . . . Rewire . | . . . . . . Trap . | . . . . . . Miscellaneous . | . . . . . . Route ------- -11/Scrapyard -10/Materials -10/Mines -9/Materials -9/Mines (discovered 2 exits: *Mat x2) -8/Materials (discovered 2 exits: Sto x2) History --------- Turn | Location | Event 7 | -11/Scrapyard | Discovered new exit (range 15) 82 | -11/Scrapyard | Entered Materials 237 | -10/Materials | Discovered new exit (range 10) 311 | -10/Materials | Build established: Mutant 347 | -10/Materials | Core integrity fell below 50% 356 | -10/Materials | Entered Mines 420 | -10/Mines | Learned location of Storage (-8) 596 | -10/Mines | Learned Materials stockpile data 720 | -10/Mines | Discovered new exit (range 8) 883 | -10/Mines | Build established: Scavenger-Mutant 937 | -10/Mines | Entered Materials 937 | -9/Materials | Evolved 2 slots: Propulsion x2 1246 | -9/Materials | Crushed by falling debris 1298 | -9/Materials | Discovered new exit (range 9) 1408 | -9/Materials | Entered Mines 1422 | -9/Mines | Discovered new exit (range 9) 1435 | -9/Mines | Lost 5 parts (1p3n1u) 1595 | -9/Mines | Discovered new exit (range 6) 1638 | -9/Mines | Entered Materials 1638 | -8/Materials | Evolved 2 slots: Utility x1, Weapon x1 1639 | -8/Materials | Identified exit to Storage 1773 | -8/Materials | Core integrity fell below 50% 1801 | -8/Materials | Lost 8 parts (1p4n1u2w) 1861 | -8/Materials | Core integrity fell below 20% 1918 | -8/Materials | Destroyed by H-55 Commando with Gauss Rifle Last Messages --------------- 01833_ Hadron Collector disabled. 01835_ Acquired Beam Rifle. 01848_ Seismic Detector destroyed. 01855_ G-47 Trooper suffers critical hit (Burn). 01858_ G-47 Trooper destroyed. 01863_ Hadron Collector disabled. 01866_ G-47 Trooper suffers critical hit (Burn). 01890_ Critical hit (Burn: +37). 01891_ Acquired 40 matter. 01906_ K-01 Serf collects debris. 01909_ Beam Rifle destroyed. 01911_ K-01 Serf collects debris. 01912_ Slug penetrates Door. 01912_ Hadron Collector disabled. 01915_ Penetrated by Slug. 01915_ Arm. Huge Wheel destroyed. 01916_ K-01 Serf collects debris. 01916_ Arm. Huge Wheel destroyed. 01918_ Penetrated by Slug. Map ----- +----------------------------------------------------+ | ?????????????????????????????? | | ?????????????????????????????? | | ?????????????????????????????? | | ????????????????????>????????? | | ?????????????????????????????? | | ?????????????????????????????? | | ?????????????????????????????? | | ?????????????????????????????? | | ?????????????????????????????? | | ?????????????????????????????? | | ?????????????????????????????? | | ?????????????????????#???????? | | ?????????????????????# ??????? | | ?????????????????????# ??????? | | ?????????????????????#t??????? | | ?????????????????????# ##+???? | | ?????????????????????# ???? | | ?????????????????????# #??? | | ?????????????????????# #??? | | ?????????????????????# #??? | | ?????????????????????# #??? | | ?????????????????????# #??? | | ?????????????????????# #??? | | ?????????????????????# #??? | | ?????????????????????#r #??? | | ?????????????????????# @#??? | | ?????????????????????#h #??? | | ?????????????????????# #??? | | ?????????????????????# k #??? | | ?????????????????????# #??? | | ?????????????????????#u #??? | | ?????????????????????# #??? | | ?????????????????????# #??? | | ????????????????????## #??? | | ????????????????????##g##;#### | | ???????????????????## # | | ???????????????????##Y""" # | | ???????????????????## """" # | | ???????????????????## """" # | | ???????????########## # | | ????????############# """" # | | ????????##### # """" # | | ????????## ## # "" # | | ????????## # # % # | | ???????# + """ # | | ????????### # # """ # | | ????????##### # " # | | ?????????#### # # | | ???????????#### ### [ # | | ???????????#### ### [ # | +----------------------------------------------------+ Best States ------------- Heat Dissipation 41 Energy Generation 10 Energy Capacity 250 Matter Stores 400 Matter Capacity 400 Sight Range 16 Terrain Scan Range 16 Terrain Scan Density 85 Utility Shielding 33 Evasion (%) 55 Recoil Reduction 2 Item Schematics ----------------- None Robot Schematics ------------------ None Fabricated ------------ Nothing Alien Tech Used ----------------- None Achievements -------------- None Challenges ------------ None Game ------ Seed BladeMachineSpoofer Manual? 0 Play Time 00:28:58 Cumulative 3.2 hours Start 2024.06.30 @ 15:36:47 End 2024.06.30 @ 16:07:44 Sessions 1 Manual Loads 0 Difficulty Rogue Special Mode None Game No. 9 Rogue 9 Adventurer 0 Explorer 0 Win Type - Total 0 Types 0/0/0/0/0/0/0/0/0 Lore% 3 Gallery% 8 Achievement% 8 Wizard Run 0 Options --------- Layout 1 ASCII 0 Keyboard 0 Movement Arrows Keybinds 0 Fullscreen 1 Font 24/Tamsyn Map View 50x35 Zoom Use 0% Tactical HUD 1 Map Filters NONE Filters NONE Steam 1 RUN: a253f5f6-e809-488d-b005-c2f9810606ec